fUST/lending_fUST_20240119
["ID","MTS","AMOUNT","RATE_DAILY","PERIOD"]
[312086328,1705607440994,-155.82500385,0.00029499,2]
[312086329,1705607441004,-2995.72102978,0.00029499,2]
[312086330,1705607441013,-9256.92805084,0.00029499,2]
[312086331,1705607441025,-25664.49685048,0.00029499,2]
[312086332,1705607441034,-22008.50560272,0.000295,30]
[312086333,1705607441043,-171.27962684,0.00029745,4]
[312086334,1705607441052,-195.1690538,0.0003,4]
[312086335,1705607441061,-243.91959085,0.0003,4]
[312086336,1705607441071,-533.20032015,0.0003,3]
[312086337,1705607441080,-283.01176432,0.0003,3]
[312086338,1705607441089,-304.584332,0.0003,4]
[312086339,1705607441099,-1200.0,0.0003,4]
[312086340,1705607441108,-230.0,0.0003,2]
[312086341,1705607441118,-306.0,0.00030137,2]
[312086342,1705607441127,-306.0,0.00030137,2]
[312086343,1705607441136,-210.7718519,0.00030137,2]
[312086344,1705607441145,-153.0,0.00030137,2]
[312086345,1705607441154,-153.0,0.00030137,2]
[312086346,1705607441163,-153.0,0.00030137,2]
[312086347,1705607441172,-160.104228,0.00030137,2]
[312086348,1705607441181,-162.233443,0.00030137,2]
[312086349,1705607441191,-153.8435111,0.00030491,7]
[312086350,1705607441200,-4999.98,0.00030698,2]
[312086351,1705607441209,-2419.2,0.00030701,2]
[312086352,1705607441219,-4999.98,0.00030731,2]
[312086353,1705607441230,-620.96808688,0.00030747,2]
[312086354,1705607441311,-152.72299378,0.00030769,7]
[312086355,1705607441323,-427.55469886,0.00030916,2]
[312086356,1705607441333,-500.0,0.00030999,2]
[312086357,1705607441342,-464.35394073,0.00030999,2]
[312086358,1705607441352,-500.0,0.00030999,2]
[312086359,1705607441361,-487.2125603,0.00030999,2]
[312086360,1705607441370,-500.0,0.00030999,2]
[312086361,1705607441380,-500.0,0.00030999,2]
[312086362,1705607441389,-500.0,0.00030999,2]
[312086363,1705607441398,-334.94526915,0.00030999,2]
[312086364,1705607441408,-500.0,0.00030999,2]
[312086365,1705607441418,-331.85433609,0.00030999,2]
[312086366,1705607441427,-500.0,0.00030999,2]
[312086367,1705607441437,-500.0,0.00030999,2]
[312086368,1705607441446,-500.0,0.00030999,2]
[312086369,1705607441455,-500.0,0.00030999,2]
[312086370,1705607441465,-500.0,0.00030999,2]
[312086371,1705607441474,-500.0,0.00030999,2]
[312086372,1705607441487,-500.0,0.00030999,2]
[312086373,1705607441497,-456.75536519,0.00030999,2]
[312086374,1705607441507,-500.0,0.00030999,2]
[312086375,1705607441515,-500.0,0.00030999,2]
[312086376,1705607441524,-500.0,0.00030999,2]
[312086377,1705607441533,-651.72201629,0.00030999,2]
[312086378,1705607441542,-500.0,0.00030999,2]
[312086379,1705607441551,-500.0,0.00030999,2]
[312086380,1705607441560,-500.0,0.00030999,2]
[312086381,1705607441569,-500.0,0.00030999,2]
[312086382,1705607441579,-500.0,0.00030999,2]
[312086383,1705607441588,-500.0,0.00030999,2]
[312086384,1705607441597,-49444.25508204,0.00031,4]
[312086386,1705607441607,-154.37695489,0.00031016,7]
[312086388,1705607441616,-162.233443,0.00031022,2]
[312086390,1705607441625,-154.37695489,0.00031503,7]
[312086392,1705607441634,-823.99826585,0.00031577,2]
[312086393,1705607441643,-463.49902453,0.00031577,2]
[312086394,1705607441652,-353.59405236,0.00031577,2]
[312086395,1705607441662,-169.81288944,0.00031577,2]
[312086397,1705607441671,-154.37695489,0.00031881,7]
[312086398,1705607441681,-162.233443,0.00031907,2]
[312086399,1705607441689,-650.89335401,0.00032,4]
[312086400,1705607441699,-280.0,0.0003212,15]
[312086401,1705607441708,-749.1399722,0.00032261,6]
[312086402,1705607441716,-427.97652717,0.00032295,3]
[312086403,1705607441728,-21582.80512049,0.00032295,6]
[312086405,1705607441737,-6159.27732306,0.00032295,5]
[312086407,1705607441746,-1287.54649735,0.0003239,2]
[312086408,1705607441755,-1273.45080855,0.00032458,2]
[312086409,1705607441764,-21159.51827424,0.000325,20]
[312086410,1705607441774,-154.37695489,0.00032687,7]
[312086411,1705607441783,-154.37695489,0.00032726,7]
[312086412,1705607441792,-162.233443,0.00032792,2]
[312086413,1705607441801,-950.0,0.00032876,2]
[312086414,1705607441810,-386.32476631,0.00033,2]
[312086415,1705607441819,-154.95351395,0.00033,4]
[312086416,1705607441829,-152.72299378,0.00033104,7]
[312086417,1705607441838,-950.0,0.0003315,2]
[312086418,1705607441847,-427.55469883,0.00033162,2]
[312086419,1705607441858,-950.0,0.00033424,2]
[312086420,1705607441867,-2580.89,0.00033534,2]
[312086421,1705607441876,-4999.97,0.00033562,2]
[312086422,1705607441886,-162.233443,0.00033678,2]
[312086423,1705607441896,-950.0,0.00033698,2]
[312086424,1705607441906,-152.72299378,0.00033774,7]
[312086425,1705607441915,-950.0,0.00033972,2]
[312086426,1705607441924,-160.104228,0.00033973,2]
[312086427,1705607441933,-153.8435111,0.00034064,7]
[312086428,1705607441942,-152.72299378,0.00034229,7]
[312086429,1705607441952,-950.0,0.00034246,2]
[312086430,1705607441961,-152.72299378,0.00034438,7]
[312086431,1705607441996,-10799.91264334,0.000345,7]
[312086432,1705607442010,-162.233443,0.00034563,2]
[312086433,1705607442020,-152.72299378,0.00034571,7]
[312086434,1705607442029,-154.95351395,0.00034647,4]
[312086435,1705607442038,-1206.23882079,0.00034793,2]
[312086436,1705607442047,-526.02830813,0.00034916,30]
[312086437,1705607442057,-2790.0,0.0003497,30]
[312086438,1705607442068,-2790.0,0.0003498,30]
[312086439,1705607442078,-430.86875032,0.0003499,6]
[312086440,1705607442087,-2790.0,0.0003499,30]
[312086441,1705607442096,-235.56,0.0003499,30]
[312086442,1705607442105,-154.93802479,0.00035,4]
[312086443,1705607442115,-2084.34070549,0.00035,4]
[312086444,1705607442124,-6760.97413379,0.00035,4]
[312086445,1705607442133,-845.27485417,0.00035,2]
[312086446,1705607442142,-1719.41141957,0.00035,15]
[312086447,1705607442152,-333.00867696,0.00035,4]
[312086448,1705607442162,-154.95351395,0.00035,4]
[312086449,1705607442171,-154.95351395,0.00035,2]
[312086450,1705607442180,-13389.41685139,0.00035,4]
[312086451,1705607442189,-391.0,0.00035332,15]
[312086452,1705607442199,-427.55469883,0.00035408,2]
[312086453,1705607442208,-162.233443,0.00035448,2]
[312086454,1705607442217,-739.421468,0.00035616,120]
[312086455,1705607442228,-153.84351112,0.00035759,7]
[312086456,1705607442238,-274.0,0.0003589,2]
[312086457,1705607442247,-11000.0,0.00036,20]
[312086458,1705607442256,-274.0,0.00036,2]
[312086459,1705607442266,-170.0,0.00036,2]
[312086460,1705607442276,-152.230843,0.00036097,2]
[312086461,1705607442286,-152.23084,0.00036097,2]
[312086462,1705607442296,-162.233443,0.00036333,2]
[312086463,1705607442305,-288.79646793,0.00036855,4]
[312086464,1705607442314,-49001.43341778,0.00036919,10]
[312086465,1705607442324,-1000.0,0.00036972,2]
[312086466,1705607442334,-152.23084,0.00036999,2]
[312086467,1705607442343,-5000.0,0.00037165,7]
[312086468,1705607442352,-162.233443,0.00037218,2]
[312086469,1705607442362,-1000.0,0.00037229,2]
[312086470,1705607442371,-471.33694125,0.00037292,2]
[312086471,1705607442381,-434.00164402,0.00037292,4]
[312086472,1705607442390,-500.0,0.00037292,4]
[312086473,1705607442400,-500.0,0.00037292,4]
[312086474,1705607442409,-500.0,0.00037292,4]
[312086475,1705607442418,-294.59443179,0.00037292,4]
[312086476,1705607442428,-500.0,0.00037292,4]
[312086477,1705607442438,-500.0,0.00037292,4]
[312086478,1705607442447,-500.0,0.00037292,4]
[312086479,1705607442457,-500.0,0.00037292,4]
[312086480,1705607442467,-500.0,0.00037292,4]
[312086481,1705607442482,-500.0,0.00037292,4]
[312086482,1705607442492,-500.0,0.00037292,4]
[312086483,1705607442502,-500.0,0.00037292,4]
[312086484,1705607442511,-330.43447966,0.00037292,4]
[312086485,1705607442520,-503.91224626,0.00037292,4]
[312086486,1705607442530,-500.0,0.00037292,4]
[312086487,1705607442539,-500.0,0.00037292,4]
[312086488,1705607442549,-585.33777956,0.00037292,4]
[312086489,1705607442558,-500.0,0.00037292,4]
[312086490,1705607442567,-500.0,0.00037292,4]
[312086491,1705607442577,-500.0,0.00037292,4]
[312086492,1705607442586,-500.0,0.00037292,4]
[312086493,1705607442596,-500.0,0.00037292,4]
[312086494,1705607442606,-500.0,0.00037292,4]
[312086495,1705607442615,-500.0,0.00037292,4]
[312086496,1705607442625,-500.0,0.00037292,4]
[312086497,1705607442634,-500.0,0.00037292,4]
[312086498,1705607442644,-412.1144595,0.00037292,4]
[312086499,1705607442654,-500.0,0.00037292,4]
[312086500,1705607442663,-500.0,0.00037292,4]
[312086501,1705607442673,-500.0,0.00037292,4]
[312086502,1705607442683,-208.80538298,0.00037292,7]
[312086503,1705607442692,-278.61236444,0.00037292,7]
[312086504,1705607442702,-500.0,0.00037292,7]
[312086505,1705607442711,-623.89075207,0.00037292,7]
[312086506,1705607442721,-500.0,0.00037292,7]
[312086507,1705607442731,-500.0,0.00037292,4]
[312086508,1705607442741,-500.0,0.00037292,7]
[312086509,1705607442751,-500.0,0.00037292,7]
[312086510,1705607442760,-500.0,0.00037292,7]
[312086511,1705607442770,-500.0,0.00037292,7]
[312086512,1705607442779,-500.0,0.00037292,7]
[312086513,1705607442857,-613.79151222,0.00037292,7]
[312086514,1705607442867,-500.0,0.00037292,7]
[312086515,1705607442877,-500.0,0.00037292,7]
[312086516,1705607442886,-592.56652389,0.00037292,7]
[312086517,1705607442896,-500.0,0.00037292,7]
[312086518,1705607442907,-500.0,0.00037292,7]
[312086519,1705607442917,-500.0,0.00037292,7]
[312086520,1705607442926,-500.0,0.00037292,7]
[312086521,1705607442936,-500.0,0.00037292,7]
[312086522,1705607442946,-500.0,0.00037292,7]
[312086523,1705607442955,-5000.0,0.00037293,2]
[312086524,1705607442964,-1000.0,0.00037297,2]
[312086525,1705607442974,-154.37695489,0.00037351,7]
[312086526,1705607442985,-274.0,0.00037397,2]
[312086527,1705607442994,-171.0,0.00037397,2]
[312086528,1705607443004,-4999.98,0.00037519,2]
[312086529,1705607443013,-5000.01,0.0003752,2]
[312086530,1705607443022,-427.55469883,0.00037654,2]
[312086531,1705607443032,-152.72299378,0.00037687,7]
[312086532,1705607443041,-154.95351395,0.00037727,4]
[312086533,1705607443051,-155.0,0.000378,2]
[312086534,1705607443060,-160.104228,0.00037808,2]
[312086535,1705607443071,-152.23084,0.00037902,2]
[312086536,1705607443081,-154.95351395,0.00038,2]
[312086537,1705607443090,-3184.89020531,0.00038,7]
[312086538,1705607443100,-624.497894,0.00038,3]
[312086539,1705607443110,-162.233443,0.00038103,2]
[312086540,1705607443119,-154.37695489,0.00038199,7]
[312086541,1705607443128,-4524.1727615,0.000384,4]
[312086542,1705607443137,-154.95351395,0.00038497,4]
[312086543,1705607443147,-2137.88596785,0.000385,4]
[312086544,1705607443157,-1000.0,0.00038511,2]
[312086545,1705607443166,-153.0,0.00038634,2]
[312086546,1705607443175,-153.0,0.00038634,2]
[312086547,1705607443184,-153.0,0.00038634,2]
[312086548,1705607443194,-153.0,0.00038634,2]
[312086549,1705607443203,-366.10965129,0.00038756,4]
[312086550,1705607443212,-258.65098072,0.00038785,4]
[312086551,1705607443221,-594.07215949,0.00038785,4]
[312086552,1705607443232,-5303.81907091,0.00038785,4]
[312086553,1705607443241,-2951.42901742,0.00038786,4]
[312086554,1705607443250,-2176.85941571,0.00038786,4]
[312086555,1705607443260,-15988.18118084,0.00038786,4]
[312086556,1705607443270,-250.61808958,0.00038788,4]
[312086558,1705607443279,-873.68475195,0.00038796,4]
[312086560,1705607443288,-20882.03797315,0.00038797,2]
[312086562,1705607443297,-328.54634455,0.00038798,4]
[312086564,1705607443305,-155.4318566,0.00038799,4]
[312086565,1705607443314,-161.69,0.00038799,2]
[312086567,1705607443323,-461545.08623207,0.000388,2]
[312086569,1705607443332,-200.0,0.00038865,30]
[312086571,1705607443342,-348.0,0.00038865,30]
[312086574,1705607443351,-151.0,0.00038889,4]
[312086575,1705607443361,-151.0,0.00038978,4]
[312086576,1705607443370,-162.233443,0.00038988,2]
[312086577,1705607443380,-5499.99999004,0.00039,2]
[312086578,1705607443389,-500.0,0.00039,3]
[312086579,1705607443399,-151.0,0.00039068,4]
[312086580,1705607443409,-154.37695489,0.00039108,7]
[312086581,1705607443418,-151.0,0.00039158,4]
[312086583,1705607443427,-155.0,0.0003917,2]
[312086585,1705607443437,-151.0,0.00039248,4]
[312086587,1705607443446,-280.0,0.00039267,14]
[312086589,1705607443456,-151.0,0.00039337,4]
[312086590,1705607443465,-152.72299378,0.00039349,7]
[312086591,1705607443474,-1000.0,0.00039378,10]
[312086593,1705607443485,-151.0,0.00039427,4]
[312086594,1705607443495,-154.37695489,0.000395,7]
[312086596,1705607443505,-151.0,0.00039517,4]
[312086598,1705607443514,-151.0,0.00039607,4]
[312086599,1705607443524,-5000.0,0.00039617,7]
[312086600,1705607443533,-5000.0,0.00039617,7]
[312086601,1705607443543,-151.0,0.00039696,4]
[312086603,1705607443552,-159.30114727,0.00039747,2]
[312086605,1705607443562,-151.0,0.00039786,4]
[312086606,1705607443572,-1489.00040561,0.00039789,20]
[312086608,1705607443581,-5000.0,0.00039793,4]
[312086609,1705607443590,-162.233443,0.00039874,2]
[312086611,1705607443600,-151.0,0.00039876,4]
[312086612,1705607443609,-427.55469883,0.000399,2]
[312086613,1705607443618,-151.0,0.00039965,4]
[312086614,1705607443628,-150.0,0.00039987,2]
[312086615,1705607443637,-4037.37988696,0.0003999,4]
[312086616,1705607443647,-500.0,0.00039999,7]
[312086617,1705607443657,-186.00070458,0.00039999,7]
[312086619,1705607443666,-500.0,0.00039999,7]
[312086620,1705607443676,-500.0,0.00039999,7]
[312086621,1705607443686,-500.0,0.00039999,7]
[312086622,1705607443695,-189.00333467,0.00039999,7]
[312086623,1705607443704,-497.82585974,0.00039999,7]
[312086624,1705607443714,-500.0,0.00039999,7]
[312086625,1705607443724,-500.0,0.00039999,7]
[312086626,1705607443734,-500.0,0.00039999,7]
[312086627,1705607443744,-500.0,0.00039999,7]
[312086628,1705607443754,-500.0,0.00039999,7]
[312086629,1705607443764,-500.0,0.00039999,7]
[312086630,1705607443774,-500.0,0.00039999,7]
[312086631,1705607443783,-500.0,0.00039999,7]
[312086632,1705607443792,-500.0,0.00039999,7]
[312086633,1705607443802,-252.9341847,0.00039999,7]
[312086635,1705607443811,-500.0,0.00039999,7]
[312086637,1705607443820,-500.0,0.00039999,7]
[312086639,1705607443829,-500.0,0.00039999,7]
[312086641,1705607443838,-434.08584463,0.00039999,7]
[312086643,1705607443848,-500.0,0.00039999,7]
[312086645,1705607443859,-500.0,0.00039999,7]
[312086648,1705607443870,-500.0,0.00039999,7]
[312086651,1705607443880,-500.0,0.00039999,7]
[312086654,1705607443890,-500.0,0.00039999,7]
[312086656,1705607443899,-154.93802479,0.0004,4]
[312086659,1705607443911,-500.0,0.0004,10]
[312086663,1705607443922,-172.90395437,0.0004,4]
[312086666,1705607443932,-154.95351395,0.0004,4]
[312086668,1705607443942,-1816.62824705,0.0004,30]
[312086670,1705607443952,-1599.63436256,0.0004,4]
[312086672,1705607443962,-52607.05774887,0.0004,120]
[312086674,1705607443972,-738.12683061,0.0004,2]
[312086676,1705607443984,-3393.37760028,0.0004,120]
[312086678,1705607443993,-5000.0,0.0004,2]
[312086679,1705607444002,-719.46157424,0.0004,2]
[312086680,1705607444011,-18893.38699722,0.0004,15]
[312086681,1705607444021,-2716.84535538,0.0004,2]
[312086682,1705607444030,-301.91589292,0.0004,2]
[312086683,1705607444039,-16207.55387816,0.0004,10]
[312086684,1705607444048,-168.22710666,0.0004,2]
[312086685,1705607444059,-192.82732,0.0004,2]
[312086686,1705607444068,-900.0,0.0004,30]
[312086687,1705607444078,-500.0,0.0004,3]
[312086688,1705607444087,-29854.73924638,0.0004,2]
[312086689,1705607444097,-12719.67152002,0.0004,3]
[312086690,1705607444279,-2073.74629911,0.0004,3]
[312086691,1705607444316,-15205.58218087,0.0004,3]
[312086692,1705607444326,-151.0,0.00040055,21]
[312086693,1705607444335,-162.69671502,0.00040067,2]
[312086694,1705607444345,-152.72299378,0.0004007,30]
[312086695,1705607444354,-1500.0,0.000401,3]
[312086696,1705607444363,-151.0,0.00040145,21]
[312086697,1705607444372,-50000.0,0.00040152,7]
[312086698,1705607444381,-154.37695489,0.00040174,30]
[312086699,1705607444391,-154.37695489,0.00040223,30]
[312086700,1705607444400,-151.0,0.00040235,21]
[312086701,1705607444410,-151.0,0.00040324,21]
[312086702,1705607444420,-151.0,0.00040414,21]
[312086703,1705607444430,-163.0,0.00040439,2]
[312086704,1705607444439,-202.711,0.00040439,2]
[312086705,1705607444449,-151.0,0.00040504,21]
[312086706,1705607444458,-155.0,0.0004054,2]
[312086707,1705607444468,-151.0,0.00040594,21]
[312086708,1705607444478,-151.0,0.00040683,21]
[312086709,1705607444488,-17303.35519019,0.000407,120]
[312086710,1705607444497,-162.233443,0.00040759,2]
[312086711,1705607444506,-151.0,0.00040773,21]
[312086712,1705607444516,-151.0,0.00040863,21]
[312086713,1705607444525,-152.72299378,0.00040921,30]
[312086714,1705607444534,-1000.0,0.00040929,2]
[312086715,1705607444543,-1000.0,0.00040943,2]
[312086716,1705607444552,-151.0,0.00040952,21]
[312086717,1705607444562,-4694.32096358,0.00040961,10]
[312086718,1705607444572,-6035.5555246,0.00040962,10]
[312086719,1705607444581,-299.09695791,0.00040962,2]
[312086720,1705607444593,-700.90304209,0.00040962,2]
[312086721,1705607444602,-381.33792268,0.00040969,10]
[312086722,1705607444613,-1054.64274701,0.00040969,10]
[312086723,1705607444625,-3258.34029389,0.00040969,10]
[312086724,1705607444634,-3313.55296598,0.00040979,10]
[312086725,1705607444645,-2722.00255862,0.00040979,10]
[312086726,1705607444654,-1328.45259119,0.00040983,10]
[312086727,1705607444666,-4707.10293341,0.00040983,10]
[312086728,1705607444675,-6787.06126194,0.00040995,5]
[312086729,1705607444913,-14663.83068947,0.00040995,5]
[312086730,1705607445134,-0.034734,0.00030137,2]
[312086731,1705607445145,-305.965266,0.00030137,2]
[312086732,1705607445154,-920.534734,0.00040995,5]
[312086733,1705607445165,-500.0,0.00040995,5]
[312086751,1705607446799,-150.0,0.00040439,2]
[312086753,1705607446808,-15629.41391304,0.00040995,5]
[312086754,1705607446817,-6035.5555246,0.00040997,10]
[312086755,1705607446826,-4694.32096358,0.00040999,10]
[312086756,1705607446902,-4694.32096358,0.00041,10]
[312086757,1705607446911,-3000.0,0.00041,120]
[312086758,1705607446920,-4336.59802954,0.00041,10]
[312086759,1705607446930,-13144.24671967,0.00041,2]
[312086760,1705607446939,-22359.87581997,0.00041,10]
[312086761,1705607446948,-198.52508774,0.00041,5]
[312086762,1705607446957,-705.17523083,0.00041,30]
[312086763,1705607446967,-190.142785,0.00041,12]
[312086764,1705607446976,-151.0,0.00041,2]
[312086765,1705607446986,-2000.0,0.00041,34]
[312086766,1705607446995,-500.0,0.00041,3]
[312086767,1705607447004,-151.0,0.00041,2]
[312086768,1705607447013,-2000.0,0.00041,34]
[312086769,1705607447024,-151.0,0.00041,2]
[312086770,1705607447032,-1720.5497676,0.00041,15]
[312086771,1705607447042,-4026.140009,0.00041,2]
[312086772,1705607447052,-4026.140009,0.00041,2]
[312086773,1705607447061,-18424.81526802,0.00041,15]
[312086774,1705607447071,-1322.96960089,0.00041,15]
[312086775,1705607447080,-218.821974,0.00041,2]
[312086776,1705607447089,-151.0,0.00041,2]
[312086777,1705607447098,-245.009401,0.00041,16]
[312086778,1705607447107,-2000.0,0.0004101,34]
[312086779,1705607447116,-2000.0,0.0004101,34]
[312086780,1705607447126,-900.0,0.00041014,30]
[312086781,1705607447135,-2000.0,0.0004102,35]
[312086782,1705607447144,-2000.0,0.0004102,35]
[312086783,1705607447154,-1000.0,0.00041025,2]
[312086784,1705607447162,-1000.0,0.00041026,2]
[312086785,1705607447172,-2000.0,0.0004103,35]
[312086786,1705607447181,-2000.0,0.0004103,35]
[312086787,1705607447191,-2000.0,0.0004104,35]
[312086788,1705607447200,-2000.0,0.0004104,35]
[312086789,1705607447210,-151.0,0.00041042,21]
[312086790,1705607447219,-2000.0,0.0004105,35]
[312086791,1705607447229,-2000.0,0.0004105,35]
[312086792,1705607447240,-2000.0,0.0004106,35]
[312086793,1705607447249,-2000.0,0.0004106,35]
[312086794,1705607447259,-2790.0,0.0004106,30]
[312086795,1705607447269,-2000.0,0.0004107,35]
[312086796,1705607447279,-2000.0,0.0004107,35]
[312086797,1705607447288,-2790.0,0.0004107,30]
[312086798,1705607447297,-1000.0,0.0004108,2]
[312086799,1705607447306,-2000.0,0.0004108,35]
[312086800,1705607447315,-2000.0,0.0004108,35]
[312086801,1705607447325,-2790.0,0.0004108,30]
[312086802,1705607447335,-215.39207813,0.00041085,2]
[312086803,1705607447346,-2806.619817,0.0004109,35]
[312086804,1705607447355,-2000.0,0.0004109,35]
[312086805,1705607447366,-1631.44328212,0.00041095,30]
[312086806,1705607447375,-500.0,0.00041095,30]
[312086807,1705607447384,-500.0,0.00041095,30]
[312086808,1705607447394,-500.0,0.00041095,30]
[312086809,1705607447403,-500.0,0.00041095,7]
[312086810,1705607447413,-500.0,0.00041095,30]
[312086811,1705607447423,-500.0,0.00041095,30]
[312086812,1705607447432,-500.0,0.00041095,30]
[312086813,1705607447442,-500.0,0.00041095,30]
[312086814,1705607447450,-500.0,0.00041095,30]
[312086815,1705607447460,-500.0,0.00041095,30]
[312086816,1705607447469,-215.00807506,0.00041095,30]
[312086817,1705607447479,-500.0,0.00041095,30]
[312086818,1705607447490,-500.0,0.00041095,30]
[312086819,1705607447499,-500.0,0.00041095,30]
[312086820,1705607447508,-501.50600553,0.00041095,7]
[312086821,1705607447518,-305.4711393,0.00041095,30]
[312086822,1705607447527,-606.73392836,0.00041095,30]
[312086823,1705607447537,-501.64,0.00041095,30]
[312086824,1705607447546,-500.0,0.00041095,30]
[312086825,1705607447555,-200.0,0.00041095,30]
[312086826,1705607447565,-636.25315522,0.00041095,30]
[312086827,1705607447575,-500.0,0.00041095,30]
[312086828,1705607447584,-500.0,0.00041095,30]
[312086829,1705607447594,-500.0,0.00041095,30]
[312086830,1705607447603,-500.0,0.00041095,30]
[312086831,1705607447613,-500.0,0.00041095,30]
[312086832,1705607447623,-500.0,0.00041095,30]
[312086833,1705607447633,-500.0,0.00041095,30]
[312086834,1705607447642,-500.0,0.00041095,30]
[312086835,1705607447651,-500.0,0.00041095,30]
[312086836,1705607447660,-500.0,0.00041095,30]
[312086837,1705607447670,-500.0,0.00041095,30]
[312086838,1705607447680,-500.0,0.00041095,30]
[312086839,1705607447690,-500.0,0.00041095,30]
[312086840,1705607447700,-150.0,0.00041095,30]
[312086841,1705607447709,-500.0,0.00041095,30]
[312086842,1705607447719,-500.0,0.00041095,30]
[312086843,1705607447728,-500.0,0.00041095,30]
[312086844,1705607447741,-409.43949132,0.00041095,30]
[312086845,1705607447750,-506.69499092,0.00041095,30]
[312086846,1705607447761,-500.0,0.00041095,30]
[312086847,1705607447771,-500.0,0.00041095,30]
[312086848,1705607447781,-500.0,0.00041095,30]
[312086849,1705607447791,-497.73487109,0.00041095,30]
[312086850,1705607447800,-500.0,0.00041095,30]
[312086851,1705607447810,-500.0,0.00041095,30]
[312086852,1705607447819,-500.0,0.00041095,30]
[312086853,1705607447830,-500.0,0.00041095,30]
[312086854,1705607447839,-500.0,0.00041095,30]
[312086855,1705607447849,-500.0,0.00041095,30]
[312086856,1705607447861,-502.71740961,0.00041095,30]
[312086857,1705607447871,-560.6,0.00041095,30]
[312086858,1705607447881,-500.0,0.00041095,30]
[312086859,1705607447890,-500.0,0.00041095,30]
[312086860,1705607447899,-500.0,0.00041095,30]
[312086861,1705607447909,-500.0,0.00041095,30]
[312086862,1705607447918,-500.0,0.00041095,30]
[312086863,1705607447927,-564.43990154,0.00041095,30]
[312086864,1705607447936,-500.4982881,0.00041095,30]
[312086865,1705607447946,-500.0,0.00041095,30]
[312086866,1705607447956,-500.44665433,0.00041095,30]
[312086867,1705607447966,-500.51789264,0.00041095,30]
[312086868,1705607447977,-603.23972376,0.00041095,30]
[312086869,1705607447991,-500.0,0.00041095,30]
[312086870,1705607448001,-500.0,0.00041095,30]
[312086871,1705607448011,-500.0,0.00041095,30]
[312086872,1705607448021,-500.0,0.00041095,30]
[312086873,1705607448032,-500.0,0.00041095,30]
[312086874,1705607448042,-1799.63,0.00041095,30]
[312086875,1705607448054,-234.43882343,0.00041095,30]
[312086876,1705607448063,-500.0,0.00041095,7]
[312086877,1705607448072,-500.0,0.00041095,30]
[312086878,1705607448082,-500.0,0.00041095,30]
[312086879,1705607448091,-500.58199725,0.00041095,30]
[312086880,1705607448100,-500.0,0.00041095,30]
[312086881,1705607448169,-500.0,0.00041095,30]
[312086882,1705607448179,-500.0,0.00041095,30]
[312086883,1705607448188,-61.97333179,0.00041095,30]
[312086884,1705607448204,-542.54993974,0.00041095,30]
[312086885,1705607448214,-500.0,0.00041095,30]
[312086886,1705607448223,-29.56556266,0.00041095,30]
[312086887,1705607448505,-67.82841038,0.00041095,30]
[312086888,1705607448593,-402.60602696,0.00041095,30]
[312086889,1705607448603,-500.0,0.00041095,30]
[312086890,1705607448612,-500.0,0.00041095,2]
[312086891,1705607448621,-500.0,0.00041095,30]
[312086892,1705607448631,-549.34,0.00041095,30]
[312086893,1705607448640,-500.0,0.00041095,30]
[312086894,1705607448649,-500.0,0.00041095,30]
[312086895,1705607448658,-500.0,0.00041095,30]
[312086896,1705607448667,-574.10867048,0.00041095,30]
[312086897,1705607448676,-500.0,0.00041095,30]
[312086898,1705607448685,-502.18640949,0.00041095,30]
[312086899,1705607448695,-1000.0,0.00041095,2]